Cogmind - Beta 11 X7 @@@ ROGUE MODE // 2021.09.06 @ 20:24:31 Player: Runia Result: Destroyed by as-13888 with Assembled Heavy Rifle Performance ------------- Evolutions (0) 0 Regions Visited (4) 800 Robots Destroyed (32) 160 Value Destroyed (629) 629 Prototype IDs (26) 520 Alien Tech Used (0) 0 Bonus (249) 249 TOTAL SCORE: 2358 Bonus ------- Follower Combat Kills 7 Aligned with FarCom 300 Friendly Fire -58 Cogmind --------- Core Integrity 0/250 Matter 270/300 Energy 100/100 System Corruption 0% Temperature Cool (0) Movement Core (300) Ox5 Location -9/Mines Parts ------- > --- POWER (1) -------- (None) > --- PROPULSION (2) --- (None) > --- UTILITY (2) ------ Medium Storage Unit > --- WEAPON (2) ------- AWS/Thermal > --- INVENTORY (10) --- Improved Heat Sink High-capacity Storage Unit Improved Terrain Scanner Decoy Drone Bay PSU Rigger Grenade Launcher Field Lobotomy Kit (5) Peak State ------------ > --- POWER ------------ Light Ion Engine > --- PROPULSION ------- Aluminum Leg Aluminum Leg > --- UTILITY ---------- Medium Storage Unit Structural Scanner > --- WEAPON ----------- AWS/Thermal > --- INVENTORY -------- Improved Heat Sink High-capacity Storage Unit Improved Terrain Scanner Decoy Drone Bay PSU Rigger Grenade Launcher Field Lobotomy Kit Mining Laser [Rating: 25] Favorites ----------- Power Light Ion Engine Engine Light Ion Engine Propulsion Aluminum Leg Leg Aluminum Leg Utility Small Storage Unit Device Structural Scanner Storage Small Storage Unit Protection Light Armor Plating Weapon Assault Rifle Energy Gun Particle Gun Ballistic Gun Assault Rifle Launcher Grenade Launcher Special Weapon Mining Laser Build | -11 -10 -10 -10 -9 ------- Run | Scr Mat Min Exi Min Slots Evolved . | . . . . . Power . | . . . . . Propulsion . | . . . . . Utility . | . . . . . Weapon . | . . . . . Parts Attached 36 | 1 20 10 3 2 Power 3 | . 3 . . . Engine 3 | . 3 . . . Core . | . . . . . Reactor . | . . . . . Propulsion 6 | . 4 1 1 . Treads . | . . . . . Leg 6 | . 4 1 1 . Wheel . | . . . . . Hover . | . . . . . Flight . | . . . . . Utility 5 | . 3 1 1 . Device 1 | . . 1 . . Storage 3 | . 2 . 1 . Processor . | . . . . . Hackware . | . . . . . Protection 1 | . 1 . . . Artifact . | . . . . . Weapon 22 | 1 10 8 1 2 Energy Gun 11 | 1 5 3 1 1 Energy Cannon . | . . . . . Ballistic Gun 3 | . 1 2 . . Ballistic Cannon . | . . . . . Launcher 7 | . 3 3 . 1 Special Weapon 1 | . 1 . . . Impact Weapon . | . . . . . Slashing Weapon . | . . . . . Piercing Weapon . | . . . . . Special Melee Weapon . | . . . . . Unidentified Prototypes . | . . . . . Parts Lost 4 | . . . . 4 Power 1 | . . . . 1 Propulsion 2 | . . . . 2 Utility 1 | . . . . 1 Weapon . | . . . . . Highest Loss Streak 4 | . . . . 4 Average Slot Usage (%) 94 | . 96 100 90 76 Engine 13 | . 14 14 14 10 Leg 27 | . 28 28 28 25 Device 7 | . . 11 14 10 Storage 14 | . 14 14 14 14 Protection 4 | . 10 2 . . Energy Gun 13 | . 13 13 14 14 Ballistic Gun 10 | . 14 14 5 . Naked Turns . | . . . . . Heaviest Build 53 | 13 53 16 22 22 Greatest Support 20 | 20 20 20 20 20 Greatest Overweight (x) 5 | . 2 . 1 5 Average Overweight (x) . | . . . . 1 Largest Inventory Capacity 20 | 8 20 8 10 10 Average Capacity 8 | 8 8 8 8 10 Most Carried 10 | 6 9 8 9 10 Average Carried 7 | 3 6 7 8 8 Final Capacity 10 | 8 8 8 10 10 Final Carried 9 | 4 7 8 9 8 Class Distribution -------------------- 67% | Mutant 32% | Scavenger-Mutant Dominant Class ---------------- Mutant | -10/Materials Scavenger-Mutant | -10/Mines Mutant | -10/Exiles Mutant | -9/Mines Resources | -11 -10 -10 -10 -9 ----------- Run | Scr Mat Min Exi Min Matter Collected 811 | 200 414 66 131 . Remotely . | . . . . . Salvage Created 929 | 15 742 114 . 58 Parts 74 | 4 44 26 . . Haulers Intercepted 2 | . 2 . . . Recyclers Shooed 6 | . 3 3 . . Parts Field Recycled . | . . . . . Retrieved Matter . | . . . . . Parts Self-Destructed . | . . . . . Prevented . | . . . . . Kills | -11 -10 -10 -10 -9 ------- Run | Scr Mat Min Exi Min Combat Hostiles Destroyed 29 | . 13 10 . 6 Guns 15 | . 10 1 . 4 AOE 14 | . 3 9 . 2 Classes Destroyed 9 | 1 7 . . 1 Worker 1 | . 1 . . . Tunneler 1 | 1 . . . . Hauler 2 | . 2 . . . Recycler 2 | . 2 . . . Operator 1 | . 1 . . . Watcher 2 | . 2 . . . Swarmer 11 | . 3 8 . . Grunt 12 | . 10 2 . . Assembled 6 | . . . . 6 Best Kill Streak 6 | 1 5 4 . 6 Combat Bots Only 6 | . 3 4 . 6 Max Kills in Single Turn 2 | 1 2 2 . 1 Gunslinging . | . . . . . Exploded 2 | . 2 2 . 1 Melee . | . . . . . Uniques/NPCs Destroyed . | . . . . . Combat | -11 -10 -10 -10 -9 -------- Run | Scr Mat Min Exi Min Damage Taken 1172 | . 547 193 . 432 Core 253 | . 88 32 . 133 Absorbed by Shields . | . . . . . Core Remaining (%) 100 | 100 . . . . Volleys Fired 78 | 1 64 11 . 2 Largest 2 | 2 2 2 . 1 Hottest 100 | 60 100 85 . 30 Shots Fired 163 | 2 121 16 . 24 Gun 148 | 2 114 10 . 22 Cannon . | . . . . . Launcher 12 | . 4 6 . 2 Special 3 | . 3 . . . Kinetic 63 | 1 57 5 . . Thermal 88 | 1 60 5 . 22 Explosive 12 | . 4 6 . 2 Electromagnetic . | . . . . . Robot Hit Streak 7 | 1 7 4 . 4 Robot Miss Streak 3 | . 3 1 . 2 Penetration Max . | . . . . . Secondary Targets . | . . . . . Autonomous 22 | . . . . 22 Shots Hit Robots 97 | 1 73 10 . 13 Core Hits 61 | 1 37 16 . 7 Critical Kills . | . . . . . Critical Parts Destroyed . | . . . . . Critical Strikes . | . . . . . Melee Attacks . | . . . . . Impact . | . . . . . Slashing . | . . . . . Piercing . | . . . . . Sneak Attacks . | . . . . . Combat Hostiles . | . . . . . Follow-up Attacks . | . . . . . Damage Inflicted 2171 | 12 1084 557 . 518 Guns 1368 | 12 883 85 . 388 Cannons . | . . . . . Explosions 803 | . 201 472 . 130 Melee . | . . . . . Ramming . | . . . . . Kinetic 469 | . 442 27 . . Thermal 899 | 12 441 58 . 388 Explosive 803 | . 201 472 . 130 Electromagnetic . | . . . . . Impact . | . . . . . Slashing . | . . . . . Piercing . | . . . . . Highest Corruption . | . . . . . Average Corruption . | . . . . . Corruption Purged . | . . . . . Overload Shots . | . . . . . Overflow Damage 15 | . . 7 . 8 Projectiles . | . . . . . Explosions 15 | . . 7 . 8 Melee . | . . . . . Knockbacks . | . . . . . Impact . | . . . . . Kinetic . | . . . . . Secondary . | . . . . . Self-Inflicted Damage 71 | . . 63 . 8 Shots 5 | . . 4 . 1 Rammed . | . . . . . Targets Rammed . | . . . . . Kicked . | . . . . . Crushed . | . . . . . Highest Temperature 279 | . 279 92 . 10 Average Temperature 57 | . 60 35 . 7 Received Heat Transfer 335 | . 297 18 . 20 Siege Activations . | . . . . . Robots Corrupted . | . . . . . Combat Hostiles . | . . . . . Parts Fried . | . . . . . Impact Corruptions . | . . . . . Robots Melted . | . . . . . Combat Hostiles . | . . . . . Parts Melted . | . . . . . Heat Transferred 1676 | 25 1022 148 . 481 Parts Sabotaged . | . . . . . Parts Stolen . | . . . . . Parts Stripped . | . . . . . Power Chain Reactions . | . . . . . Missiles Intercepted . | . . . . . Alert | -11 -10 -10 -10 -9 ------- Run | Scr Mat Min Exi Min Peak Influence 260 | 5 260 176 . 15 Initial 36 | . 3 36 . . Average 113 | 4 114 146 . 1 Maximum Alert Level 1 | . 1 . . . Low Security (%) 81 | 100 70 100 . 100 Level 1 18 | . 29 . . . Level 2 . | . . . . . Level 3 . | . . . . . Level 4 . | . . . . . Level 5 . | . . . . . High Security . | . . . . . Max Security . | . . . . . Squads Dispatched 3 | . 3 . . . Investigation 1 | . 1 . . . Extermination . | . . . . . Reinforcement 2 | . 2 . . . Assault . | . . . . . Garrison . | . . . . . Intercept . | . . . . . Construction Impeded . | . . . . . Haulers Reinforced . | . . . . . Active Scanning Responses . | . . . . . Cargo Convoy Interrupts . | . . . . . Stealth | -11 -10 -10 -10 -9 --------- Run | Scr Mat Min Exi Min Distress Signals . | . . . . . Communications Jammed . | . . . . . Distress Signals . | . . . . . Times Spotted 49 | . 25 11 . 13 Peak Tracking Total 13 | . 4 5 . 13 Tactical Retreats 1 | . . . . 1 Traps | -11 -10 -10 -10 -9 ------- Run | Scr Mat Min Exi Min Traps Triggered 1 | . 1 . . . Indirectly . | . . . . . Trap Hack Attempts . | . . . . . Triggered . | . . . . . Disarmed . | . . . . . Reprogrammed . | . . . . . Reused . | . . . . . Traps Extracted . | . . . . . Installed . | . . . . . Triggered . | . . . . . Machines | -11 -10 -10 -10 -9 ---------- Run | Scr Mat Min Exi Min Machines Disabled . | . . . . . Max in Single Turn . | . . . . . Machines Sabotaged . | . . . . . Garrisons Compromised . | . . . . . Overloaded Fab Kills . | . . . . . Fab Network Shutdowns . | . . . . . Hacking | -11 -10 -10 -10 -9 --------- Run | Scr Mat Min Exi Min Machines Accessed 10 | . 7 1 2 . Terminals 6 | . 6 . . . Fabricators . | . . . . . Repair Stations 1 | . 1 . . . Recycling Units . | . . . . . Scanalyzers . | . . . . . Garrison Access . | . . . . . Total Hacks 20 | . 17 1 2 . Successful 12 | . 9 1 2 . Failed 8 | . 8 . . . Catastrophic 2 | . 2 . . . Database Lockouts . | . . . . . Manual 7 | . 6 . 1 . Terminals 16 | . 16 . . . Fabricators . | . . . . . Repair Stations 1 | . 1 . . . Recycling Units . | . . . . . Scanalyzers . | . . . . . Garrison Access . | . . . . . Terminal Hacks 9 | . 6 1 2 . Record 1 | . . . 1 . Prototype ID Bank 2 | . 2 . . . Open Door 1 | . . 1 . . Terminal Index 1 | . 1 . . . Unreport Threat 2 | . 2 . . . Zone Layout 1 | . 1 . . . EX-Prototype ID Bank 1 | . . . 1 . Fabricator Hacks . | . . . . . Repair Station Hacks . | . . . . . Recycling Unit Hacks . | . . . . . Scanalyzer . | . . . . . Garrison Access Hacks . | . . . . . Unauthorized Hacks 3 | . 3 . . . Terminals 3 | . 3 . . . Botnet 3 | . 3 . . . Fabricators . | . . . . . Repair Stations . | . . . . . Recycling Units . | . . . . . Scanalyzers . | . . . . . Garrison Access . | . . . . . Data Cores Recovered . | . . . . . Used . | . . . . . Hacking Detections 7 | . 7 . . . Full Trace Events . | . . . . . Feedback Events . | . . . . . Feedback Blocked . | . . . . . Robot Schematics Acquired . | . . . . . Robots Built . | . . . . . Matter . | . . . . . Time . | . . . . . Total Robot Build Rating . | . . . . . Part Schematics Acquired . | . . . . . Parts Built . | . . . . . Matter . | . . . . . Time . | . . . . . Total Part Build Rating . | . . . . . Parts Repaired . | . . . . . Time . | . . . . . Parts Recycled . | . . . . . Recycled Matter . | . . . . . Retrieved Matter . | . . . . . Retrieved Components . | . . . . . Parts Scanalyzed . | . . . . . Part Schematics Acquired . | . . . . . Parts Damaged . | . . . . . Bothacking | -11 -10 -10 -10 -9 ------------ Run | Scr Mat Min Exi Min Used RIF Installer . | . . . . . Robots Hacked . | . . . . . Non-combat . | . . . . . Combat . | . . . . . Robot Hacks Applied . | . . . . . Relay Couplers Released . | . . . . . Robots Rewired . | . . . . . Allies Hacked . | . . . . . Hacks Repelled . | . . . . . Allies | -11 -10 -10 -10 -9 -------- Run | Scr Mat Min Exi Min Total Allies 1 | . . 1 . . Largest Group 1 | . . 1 1 . Highest-Rated Group 31 | . . 31 31 . Highest-Rated Ally 31 | . . 31 31 . Total Orders . | . . . . . Ally Attacks 3 | . . 3 . . Total Damage 20 | . . 20 . . Kills 1 | . . 1 . . Allies Corrupted . | . . . . . Allies Melted . | . . . . . Intel | -11 -10 -10 -10 -9 ------- Run | Scr Mat Min Exi Min Robot Analysis Total . | . . . . . Derelict Logs Recovered 1 | . . 1 . . Drone Launches . | . . . . . Drone Recoveries . | . . . . . Exploration | -11 -10 -10 -10 -9 ------------- Run | Scr Mat Min Exi Min Turns Passed 2555 | 17 1040 486 880 132 Spaces Moved 1668 | 9 627 358 611 63 Core 2 | . . . . 2 Treads . | . . . . . Legs 1666 | 9 627 358 611 61 Wheels . | . . . . . Hover . | . . . . . Flight . | . . . . . Fastest Speed 120 | 120 120 120 120 120 Average Speed 132 | 120 122 120 142 198 Slowest Speed 300 | 120 280 120 200 300 Overloaded Moves . | . . . . . Propulsion Burnouts . | . . . . . Robots Hopped . | . . . . . Cave-ins Triggered . | . . . . . Exploration Rate (%) 53 | 2 93 81 71 22 Regions Visited 4 Branch Regions 3 Pre-discovered Areas 2 | . . 1 1 . Known Exits Taken . | . . . . . Unknown Exits Taken 4 | 1 1 1 1 . Scrap Searched 1 | . . 1 . . Spaces Dug 12 | . 12 . . . Terrain Destroyed 79 | . 31 31 . 17 Melee . | . . . . . Projectile 8 | . 3 . . 5 AOE 71 | . 28 31 . 12 Terrain Rammed . | . . . . . Walls Destroyed . | . . . . . Machines Disabled . | . . . . . Actions | -11 -10 -10 -10 -9 --------- Run | Scr Mat Min Exi Min Total 1871 | 14 771 397 619 70 Wait 53 | . 40 13 . . Move 1664 | 8 626 357 610 63 Hop . | . . . . . Pick Up 13 | 1 8 2 2 . Fast Attach 2 | . 1 . 1 . Attach 4 | 1 . 1 . 2 Detach 2 | . . . . 2 Swap 30 | . 19 9 2 . Drop 25 | 3 13 4 4 1 Fire 78 | 1 64 11 . 2 Melee . | . . . . . Ram . | . . . . . Kick . | . . . . . Crush . | . . . . . Escape Stasis . | . . . . . Rewire . | . . . . . Trap . | . . . . . Miscellaneous . | . . . . . Route ------- -11/Scrapyard -10/Materials (discovered 4 exits: [*Mat x3] / *Min) -10/Mines (discovered 2 exits: [*Mat] / *Exi) -10/Exiles -9/Mines History --------- Turn | Location | Event 7 | -11/Scrapyard | Discovered new exit (range 2) 18 | -11/Scrapyard | Entered Materials 228 | -10/Materials | Discovered new exit (range 16) 302 | -10/Materials | Build established: Mutant 620 | -10/Materials | Discovered new exit (range 3) 724 | -10/Materials | Discovered new exit (range 17) 898 | -10/Materials | Discovered new exit (range 16) 1058 | -10/Materials | Entered Mines 1119 | -10/Mines | Discovered new exit (range 8) 1132 | -10/Mines | Found the Drone Emporium 1140 | -10/Mines | Found Prototype Device 1183 | -10/Mines | Escorted by a lone wolf Derelict 1203 | -10/Mines | Learned location of Storage (-9) 1355 | -10/Mines | Build established: Scavenger-Mutant 1432 | -10/Mines | Learned Materials garrison access intel 1534 | -10/Mines | Deemed a non-threat by the Exiles lab entrance 1534 | -10/Mines | Discovered new exit (range 5) 1544 | -10/Mines | Entered Exiles 1544 | -10/Exiles | Accompanied by 1 ally 1576 | -10/Exiles | Met 8R-AWN 1595 | -10/Exiles | Met EX-HEX 1642 | -10/Exiles | Met EX-DEC 1648 | -10/Exiles | Learned location of Zion (-6) 1741 | -10/Exiles | Met EX-BIN 1835 | -10/Exiles | Aligned with FarCom system 1836 | -10/Exiles | Given EX-Vault access code 1864 | -10/Exiles | Opened EX-Vault 1872 | -10/Exiles | Found Field Lobotomy Kit 1879 | -10/Exiles | Found AWS/Thermal 1906 | -10/Exiles | Warned to stay clear of 0b10 Research branches 2170 | -10/Exiles | Build established: Mutant 2235 | -10/Exiles | Found PSU Rigger 2408 | -10/Exiles | Discovered new exit (range 10) 2424 | -10/Exiles | Stole three prototypes: AWS/Thermal, PSU Rigger, Field Lobotomy Kit 2424 | -10/Exiles | Entered Mines 2509 | -9/Mines | Assembled infested the area 2512 | -9/Mines | Core integrity fell below 50% 2514 | -9/Mines | Assisted by a Guerilla fighting off Assembled 2551 | -9/Mines | Core integrity fell below 20% 2556 | -9/Mines | Destroyed by as-13888 with Assembled Heavy Rifle Last Messages --------------- been tracking a group of Assembled to figure out where they're coming from, and they're closing on this area, come on!" HV Slug penetrates Wall. as-20196 suffers critical hit (Destroy). as-20196 knocked back. EV-T5A(h) destroyed. as-22502 destroyed. Dropped Mining Laser. as-50638 destroyed. Destroyed Asb. F-torch. as-16185 destroyed. Lgt. Ion Engine destroyed. Structural Scanner destroyed. Destroyed Asb. Hover Unit. as-01406 destroyed. Aluminum Leg destroyed. as-39550 destroyed. as-18666 destroyed. as-42127 destroyed. Aluminum Leg destroyed. Map ----- +----------------------------------------------------+ | | | | | | | | | | | | | | | | | | | | | | | | | | | ????############?????????######??????????????????? | | ????###################?########?????????????????? | | ????## ############# #######?????????????? | | ????## ##### ######?????????????? | | ????## ##?????????????? | | ????## ### """ ##?????????????? | | ????## ## """ ###?????????????? | | ????## """ ## ####?????????????? | | ????## """ ########??????C???????? | | ????## """ #### #######???????????????? | | ????## """ ##### ##????????????????????? | | ????## ##### ##????????????????????? | | ????## #### @###????????????????????? | | ????## #### ####????????????????????? | | ??????### ####### ###?????????????????????? | | ??????### ######## ###?????????????????????? | | ???????## ##???#### % ##??????##?????????????? | | ??????? ??????#### C ###??? #?????????????? | | ????????? ???????##;aa# ### ##????????????? | | ??????????????????# # # #????????????? | | ?????????????????####% ## ??????? | | ????????????????####;| #### ##?????????? | | ????????????????### ##### #####??????????? | | ???????????????## ###### ####????????????? | | ???????????????## = ##?#########?????????????? | | ????????????##### %= ###???######??????????????? | | ????????????## % ###???????????????????????? | | ?????????? ##????????????????????????? | | ??????? ##????????????????????????? | | ???? # ##????????????????????????? | | ????# "#####????????????????????????? | | ????### "#####????????????????????????? | | ????### ###????????????????????????????? | | ?????## ##????????????????????????????? | | ?????# % ???????????????????????????????? | | ?????? ## ???????????????????????????????? | | ??????###### #??????????????????????????????? | +----------------------------------------------------+ Best States ------------- Heat Dissipation 25 Energy Generation 10 Energy Capacity 250 Matter Stores 300 Matter Capacity 300 Sight Range 16 Terrain Scan Density 10 Armor Coverage 150 Evasion (%) 55 Item Schematics ----------------- None Robot Schematics ------------------ None Fabricated ------------ Nothing Alien Tech Used ----------------- None Achievements -------------- None Challenges ------------ None Game ------ Seed ContainmentCouplerBroadsword Manual? 0 Play Time 00:19:07 Cumulative 304.2 hours Start 2021.09.06 @ 11:51:25 End 2021.09.06 @ 20:24:31 Sessions 4 Manual Loads 0 Difficulty Rogue Special Mode None Game No. 348 Rogue 348 Adventurer 0 Explorer 0 Win Type - Total 6 Types 6/0/0/0/0/0/0/0/0 Lore% 72 Gallery% 87 Achievement% 66 Wizard Run 0 Options --------- ASCII 0 Keyboard 0 Movement Mouse Keybinds 1 Fullscreen 2 Font 24/Smallcaps Map View 76x50 Tactical HUD 1 Map Filters NONE Filters NONE Steam 1 RUN: f3a25d9f-b655-43d5-9ac9-d3c393876743